Cogmind - Beta 10.1 @@@ ROGUE MODE // 2020.10.15 @ 13:37:15 Player: 3.14 Result: Self-destructed Performance ------------- Evolutions (7) 3500 Regions Visited (27) 5400 Robots Destroyed (246) 1230 Value Destroyed (13310) 13310 Prototype IDs (63) 1260 Alien Tech Used (9) 1800 Bonus (3897) 3897 TOTAL SCORE: 30397 Bonus ------- High Alert Combat Kills 784 Follower Combat Kills 1288 Network Hubs Disabled 200 Met Data Miner 300 Met Zhirov 300 Met Warlord at Base 500 MAIN.C Attacked Warlord 500 Built Enhanced Grunts 300 A7 Reached Mainframe 300 Friendly Fire -575 Cogmind --------- Core Integrity 887/1300 Matter 240/300 Energy 398/700 System Corruption 19% Temperature Cool (0) Movement Treading (155) Location -3/Section 7 Parts ------- > --- POWER (2) -------- Vortex Chain Reactor > --- PROPULSION (6) --- Improved Heavy Treads Advanced Heavy Treads High-density Centrium Heavy Treads > --- UTILITY (11) ----- High-capacity Storage Unit High-capacity Storage Unit Experimental Targeting Computer Advanced Target Analyzer Advanced Core Analyzer Experimental Armor Integrity Analyzer Centrium Heavy Armor Plating Advanced Focal Shield Experimental Force Field > --- WEAPON (2) ------- Gamma Rifle Gamma Rifle > --- INVENTORY (20) --- Advanced Cooling System Advanced Energy Well (800) Quantum Capacitor Medium Insulated Plating Thermal Barrier EM Dispersion Field Advanced Force Field Improved Energy Mantle Subatomic Replicator Gamma Rifle Advanced Variable Charge Gun Heavy Dispersion Rifle Compact HERF Cannon Nova Cannon Enhanced Nova Cannon Advanced EMP Blaster Advanced Remote Datajack Peak State ------------ > --- POWER ------------ Vortex Chain Reactor > --- PROPULSION ------- Improved Heavy Treads Advanced Heavy Treads High-density Centrium Heavy Treads > --- UTILITY ---------- Advanced Cooling System High-capacity Storage Unit High-capacity Storage Unit Experimental Targeting Computer Advanced Core Analyzer Experimental Armor Integrity Analyzer Centrium Heavy Armor Plating Thermal Barrier EM Dispersion Field Experimental Force Field > --- WEAPON ----------- Gamma Rifle Gamma Rifle > --- INVENTORY -------- Advanced Energy Well Quantum Capacitor Medium Insulated Plating Advanced Focal Shield Advanced Force Field Improved Energy Mantle Dimensional Node Initializer Transdimensional Reconstructor Transdimensional Reconstructor High-powered Transdimensional Reconstructor Subatomic Replicator Advanced Variable Charge Gun Heavy Dispersion Rifle Compact HERF Cannon Nova Cannon Enhanced Nova Cannon Advanced EMP Blaster Improved Remote Datajack Advanced Remote Datajack [Rating: 185] Favorites ----------- Power Vortex Chain Reactor Engine Improved Deuterium Engine Power Core Neutrino Core Reactor Vortex Chain Reactor Propulsion Armored Treads Treads Armored Treads Utility High-capacity Storage Unit Device Improved Cooling System Storage High-capacity Storage Unit Processor Improved Targeting Computer Protection Hardened Heavy Armor Plating Artifact Phase Redirector Weapon Ion Burst Cannon Energy Gun Lightning Gun Energy Cannon Ion Burst Cannon Ballistic Gun Assault Rifle Launcher Advanced EMP Blaster Special Weapon Improved Remote Datajack Impact Weapon Core Stripper Build | -11 -10 -9 -9 -8 -7 -7 -7 -7 -6 -6 -6 -6 -6 -6 -5 -5 -5 -5 -4 -4 -4 -4 -4 -3 -3 -3 -3 ------- Run | Scr Mat Mat Min Mat Fac Low Low Dat Pro Fac Ext Cet Arc Hub Fac Upp Upp War Pro Fac Upp Upp Zhi Pro Res Qua Sec Slots Evolved 14 | . . 2 . 2 2 . . . . 2 . . . . 2 . . . . 2 . . . . 2 . . Power 1 | . . . . . . . . . . 1 . . . . . . . . . . . . . . . . . Propulsion 4 | . . . . 1 1 . . . . 1 . . . . 1 . . . . . . . . . . . . Utility 9 | . . 2 . 1 1 . . . . . . . . . 1 . . . . 2 . . . . 2 . . Weapon . | . . . . . . . . . . . . . . . . . . . . . . . . . . . . Parts Attached 282 | 6 2 1 4 15 21 7 3 1 2 13 14 8 2 4 10 14 2 10 6 14 3 2 7 7 21 50 33 Power 16 | 1 . . 1 1 2 . . . . 1 3 1 . 1 1 . . 1 . . . . . . . 3 . Engine 9 | 1 . . 1 1 2 . . . . 1 3 . . . . . . . . . . . . . . . . Core 2 | . . . . . . . . . . . . . . . 1 . . . . . . . . . . 1 . Reactor 5 | . . . . . . . . . . . . 1 . 1 . . . 1 . . . . . . . 2 . Propulsion 40 | 2 . . 1 5 5 2 1 . . 1 4 2 . . 1 . . 3 . 4 . . . 1 4 3 1 Treads 40 | 2 . . 1 5 5 2 1 . . 1 4 2 . . 1 . . 3 . 4 . . . 1 4 3 1 Leg . | . . . . . . . . . . . . . . . . . . . . . . . . . . . . Wheel . | . . . . . . . . . . . . . . . . . . . . . . . . . . . . Hover . | . . . . . . . . . . . . . . . . . . . . . . . . . . . . Flight . | . . . . . . . . . . . . . . . . . . . . . . . . . . . . Utility 101 | 1 2 . 2 2 5 . . . . 2 3 1 2 . 2 9 1 4 . 5 1 . 7 1 7 31 13 Device 48 | . . . . 1 2 . . . . 1 1 . . . . 4 . 2 . 4 . . . 1 3 17 12 Storage 10 | 1 1 . 1 . 1 . . . . . . . . . . 1 . . . . . . 1 . 1 3 . Processor 8 | . 1 . . . . . . . . . . . . . 1 . 1 2 . . . . 1 . 1 . 1 Hackware . | . . . . . . . . . . . . . . . . . . . . . . . . . . . . Protection 32 | . . . 1 1 2 . . . . 1 2 1 2 . 1 4 . . . 1 1 . 5 . 2 8 . Artifact 3 | . . . . . . . . . . . . . . . . . . . . . . . . . . 3 . Weapon 125 | 2 . 1 . 7 9 5 2 1 2 9 4 4 . 3 6 5 1 2 6 5 2 2 . 5 10 13 19 Energy Gun 32 | . . . . . 2 3 1 . 1 4 . 1 . . . 1 . . . . . . . . 2 7 10 Energy Cannon 66 | . . . . 6 7 . . . 1 4 3 3 . 2 4 2 1 1 4 3 1 1 . 4 8 3 8 Ballistic Gun 3 | 2 . 1 . . . . . . . . . . . . . . . . . . . . . . . . . Ballistic Cannon . | . . . . . . . . . . . . . . . . . . . . . . . . . . . . Launcher 22 | . . . . 1 . 2 1 1 . 1 1 . . 1 2 2 . . 2 2 1 1 . 1 . 2 1 Special Weapon 1 | . . . . . . . . . . . . . . . . . . 1 . . . . . . . . . Impact Weapon 1 | . . . . . . . . . . . . . . . . . . . . . . . . . . 1 . Slashing Weapon . | . . . . . . . . . . . . . . . . . . . . . . . . . . . . Piercing Weapon . | . . . . . . . . . . . . . . . . . . . . . . . . . . . . Special Melee Weapon . | . . . . . . . . . . . . . . . . . . . . . . . . . . . . Unidentified Prototypes 34 | . . . . 1 . . . . . 2 . 3 . 1 . 2 . 3 . . . . 4 . 1 13 4 Parts Lost 5 | . . 1 . . . 1 . . . . 1 . . . . 1 . . . . . . . . 1 . . Power . | . . . . . . . . . . . . . . . . . . . . . . . . . . . . Propulsion . | . . . . . . . . . . . . . . . . . . . . . . . . . . . . Utility 2 | . . . . . . . . . . . 1 . . . . 1 . . . . . . . . . . . Weapon 3 | . . 1 . . . 1 . . . . . . . . . . . . . . . . . . 1 . . Highest Loss Streak 1 | . . 1 . . . 1 . . . . 1 . . . . 1 . . . . . . . . 1 . . Average Slot Usage (%) 85 | . 97 77 93 99 92 92 92 92 92 98 100 94 93 93 87 88 88 85 82 77 78 78 80 84 80 74 74 Engine 3 | . 14 11 11 9 7 7 7 7 7 13 13 8 6 5 . . . . . . . . . . . . . Reactor 3 | . . . . . . . . . . . . 3 6 6 7 5 5 5 5 5 5 5 5 5 4 4 4 Treads 23 | . 28 22 22 27 30 30 30 30 30 33 33 27 26 26 23 23 23 22 23 20 21 21 21 21 15 14 14 Device 9 | . . . . 8 7 7 7 7 7 11 13 7 6 6 5 8 5 7 11 13 13 10 10 10 13 15 14 Storage 12 | . 14 11 17 18 15 15 15 15 15 13 13 13 13 13 11 11 11 11 11 10 10 10 10 10 13 10 10 Processor 10 | . 11 11 11 9 7 7 7 7 7 6 6 6 6 6 8 11 11 11 11 10 10 10 11 15 14 14 16 Protection 7 | . . . 9 9 7 7 7 7 7 6 6 11 13 13 13 7 11 8 5 6 6 10 10 10 8 4 4 Energy Gun 3 | . . . . . 3 14 14 15 7 9 1 . . . . . 5 5 2 . . . . . 2 3 5 Energy Cannon 6 | . . . . 16 11 . . . . 1 9 12 13 11 9 9 2 3 7 9 8 10 10 10 6 3 2 Ballistic Gun 1 | . 28 22 22 1 . . . . . . . . . . . . . . . . . . . . . . . Naked Turns . | . . . . . . . . . . . . . . . . . . . . . . . . . . . . Heaviest Build 163 | 13 41 41 75 87 108 104 106 106 106 114 113 125 125 138 141 131 128 137 142 159 155 155 155 144 155 163 163 Greatest Support 235 | 40 40 40 40 60 80 83 83 83 83 103 118 158 148 148 200 200 200 214 214 214 214 214 214 214 210 235 235 Greatest Overweight (x) 2 | 2 1 1 1 1 1 1 1 1 1 1 1 . . . . . . . . . . . . . . . . Average Overweight (x) . | . . . . 1 1 1 1 1 1 . . . . . . . . . . . . . . . . . . Largest Inventory Capacity 20 | 6 12 12 20 20 20 20 20 20 20 20 20 20 20 20 20 20 20 20 20 20 20 20 20 20 20 20 20 Average Capacity 19 | 5 9 12 17 20 20 20 20 20 20 20 20 20 20 20 20 20 20 20 20 20 20 20 20 20 20 20 20 Most Carried 20 | 4 11 12 12 20 20 20 20 20 20 20 20 20 20 20 20 20 20 20 20 20 20 20 20 20 20 20 20 Average Carried 19 | 2 7 11 11 19 19 19 20 20 20 18 19 19 20 19 19 19 19 19 19 19 20 20 19 19 19 19 19 Final Capacity 20 | 6 12 12 20 20 20 20 20 20 20 20 20 20 20 20 20 20 20 20 20 20 20 20 20 20 20 20 20 Final Carried 20 | 4 10 12 12 20 20 20 20 20 20 20 20 20 20 20 20 19 20 20 20 20 20 20 20 20 20 20 18 Class Distribution -------------------- 53% | Scavenger-Mutant 41% | Hauler-Mutant 4% | Mutant Dominant Class ---------------- Mutant | -10/Materials Mutant | -9/Materials Hauler-Mutant | -9/Mines Scavenger-Mutant | -8/Materials Hauler-Mutant | -7/Factory Hauler-Mutant | -7/Lower Caves Hauler-Mutant | -7/Lower Caves Hauler-Mutant | -7/Data Miner Hauler-Mutant | -6/Proximity Caves Scavenger-Mutant | -6/Factory Hauler-Mutant | -6/Extension Hauler-Mutant | -6/Cetus Hauler-Mutant | -6/Archives Hauler-Mutant | -6/Hub_04(d) Scavenger-Mutant | -5/Factory Hauler-Mutant | -5/Upper Caves Scavenger-Mutant | -5/Upper Caves Scavenger-Mutant | -5/Warlord Scavenger-Mutant | -4/Proximity Caves Scavenger-Mutant | -4/Factory Scavenger-Mutant | -4/Upper Caves Scavenger-Mutant | -4/Upper Caves Scavenger-Mutant | -4/Zhirov Scavenger-Mutant | -3/Proximity Caves Scavenger-Mutant | -3/Research Scavenger-Mutant | -3/Quarantine Hauler-Mutant | -3/Section 7 Resources | -11 -10 -9 -9 -8 -7 -7 -7 -7 -6 -6 -6 -6 -6 -6 -5 -5 -5 -5 -4 -4 -4 -4 -4 -3 -3 -3 -3 ----------- Run | Scr Mat Mat Min Mat Fac Low Low Dat Pro Fac Ext Cet Arc Hub Fac Upp Upp War Pro Fac Upp Upp Zhi Pro Res Qua Sec Matter Collected 3830 | 266 92 132 64 139 210 93 104 . 35 120 130 110 20 80 . 303 65 110 115 111 116 42 . 150 214 490 519 Remotely . | . . . . . . . . . . . . . . . . . . . . . . . . . . . . Salvage Created 14016 | 79 215 280 145 544 495 519 230 . 42 231 635 448 80 502 230 248 352 . 738 834 586 222 . 237 1129 2405 2590 Parts 631 | 1 15 12 7 28 21 33 9 . 3 5 33 16 . 20 8 7 8 . 30 33 22 10 . 15 54 109 132 Haulers Intercepted 6 | . 1 . . 1 1 . . . . 1 . . . 1 . . . . . 1 . . . . . . . Recyclers Shooed 7 | . . 1 . . . . . . . 1 1 . . . . . . . . 2 . . . . . 1 1 Parts Field Recycled . | . . . . . . . . . . . . . . . . . . . . . . . . . . . . Retrieved Matter . | . . . . . . . . . . . . . . . . . . . . . . . . . . . . Parts Self-Destructed 145 | . . . . . . 16 2 . . . . . . . . 5 4 78 19 . 5 9 . 7 . . . Prevented 80 | . . . . . . 15 7 . 7 . . . . . . 3 11 5 16 . 8 . . 8 . . . Kills | -11 -10 -9 -9 -8 -7 -7 -7 -7 -6 -6 -6 -6 -6 -6 -5 -5 -5 -5 -4 -4 -4 -4 -4 -3 -3 -3 -3 ------- Run | Scr Mat Mat Min Mat Fac Low Low Dat Pro Fac Ext Cet Arc Hub Fac Upp Upp War Pro Fac Upp Upp Zhi Pro Res Qua Sec Combat Hostiles Destroyed 217 | . 4 8 3 13 7 15 4 . 1 5 9 5 1 8 3 4 5 . 13 12 7 7 . 3 19 27 34 Guns 39 | . 4 8 3 . 1 7 1 . . 1 1 . . . . . . . . . . . . . 1 3 9 Cannons 75 | . . . . 9 3 . . . . . 1 1 1 1 . 2 . . 5 9 1 4 . 2 15 11 10 AOE 47 | . . . . . . 7 3 . . 4 2 1 . 7 3 1 1 . 3 2 3 3 . . 1 4 2 Classes Destroyed 18 | 1 4 1 1 . 2 1 . . 1 . 2 1 . 1 . . . . . . 1 . . . . 2 . Worker 6 | . . . . . . . . . . . . . . 1 . . . . . 2 . . . . 1 1 1 Builder 7 | . . . . . . . . . . . 2 . . 1 1 . . . . . . . . . . 2 1 Hauler 6 | . 1 . . 1 1 . . . . 1 . . . 1 . . . . . 1 . . . . . . . Recycler 1 | 1 . . . . . . . . . . . . . . . . . . . . . . . . . . . Carrier 1 | . . . . . . . . . . . . 1 . . . . . . . . . . . . . . . Operator 3 | . . . . . 1 . . . . . 1 . . . . . . . . 1 . . . . . . . Watcher 4 | . 1 . . 1 . . . . . . . 1 . . . . . . . . . . . . . . 1 Swarmer 48 | . 1 3 . 7 . 9 . . . 3 . 1 . 4 . . . . 7 . . 5 . . 3 . 5 Grunt 90 | . 3 4 2 4 3 3 3 . . 2 3 1 . 3 3 2 5 . 5 3 4 1 . . 7 15 14 Brawler 2 | . . . 1 . . . 1 . . . . . . . . . . . . . . . . . . . . Duelist 3 | . . . . . . 2 . . . . . . . . . . . . . . . . . . . . 1 Sentry 25 | . . 1 . 2 3 1 . . . . 5 . 1 1 . 1 . . . 1 1 1 . . 2 . 5 Specialist 3 | . . . . . . . . . . . . . . . . . . . . . . . . . . 3 . Hunter 9 | . . . . . . . . . 1 . . . . . . . . . . 2 2 . . . 4 . . Programmer 29 | . . . . . 1 . . . . . . . . . . 1 . . . 6 . . . 2 2 8 9 Behemoth 4 | . . . . . . . . . . . 1 . . . . . . . 1 . . . . 1 1 . . Cetus Guard 3 | . . . . . . . . . . . . 3 . . . . . . . . . . . . . . . Fortress 1 | . . . . . . . . . . . . . . . . . . . . . . . . . . 1 . Mutant 1 | . . . . . . . . . . . . . . . . . . . . . 1 . . . . . . Best Kill Streak 9 | 1 4 3 3 3 2 6 4 . 1 3 3 7 1 9 4 1 3 . 5 4 4 7 . 2 7 5 6 Combat Bots Only 7 | . 2 3 3 3 2 6 4 . 1 3 3 5 1 7 3 1 3 . 5 4 4 7 . 2 7 5 6 Max Kills in Single Turn 3 | 1 1 1 1 1 1 3 1 . 1 2 1 1 1 3 2 1 1 . 3 1 1 2 . 1 2 2 2 Gunslinging . | . . . . . . . . . . . . . . . . . . . . . . . . . . . . Exploded 3 | . . . . . . 3 1 . . 2 1 1 . 3 2 1 1 . 3 1 1 2 . . 1 1 1 Melee . | . . . . . . . . . . . . . . . . . . . . . . . . . . . . Uniques/NPCs Destroyed . | . . . . . . . . . . . . . . . . . . . . . . . . . . . . Combat | -11 -10 -9 -9 -8 -7 -7 -7 -7 -6 -6 -6 -6 -6 -6 -5 -5 -5 -5 -4 -4 -4 -4 -4 -3 -3 -3 -3 -------- Run | Scr Mat Mat Min Mat Fac Low Low Dat Pro Fac Ext Cet Arc Hub Fac Upp Upp War Pro Fac Upp Upp Zhi Pro Res Qua Sec Damage Taken 9927 | . 101 355 86 628 354 771 14 . . 103 435 181 49 434 63 147 239 49 325 373 214 119 . 430 1726 1619 1112 Core 416 | . . 43 22 40 32 30 . . . . . 21 . 32 . 28 . . . . 22 . . . 42 49 55 Absorbed by Shields 5459 | . . . . . . . . . . 9 159 67 . . . . . 12 312 399 225 127 . 372 1308 1281 1188 Reduced by Siege Mode 301 | . . . . . . . . . . . . . . . . . . . 9 . . 6 . 19 162 105 . Core Remaining (%) 94 | 100 100 . 83 92 . . . . 91 . . . . 93 . . . . 97 . . . . 98 . . . Volleys Fired 608 | 1 12 25 6 36 19 24 5 . 1 12 28 11 6 14 14 9 11 3 23 28 10 8 . 14 53 145 90 Largest 2 | 2 2 2 2 2 2 2 2 . 1 2 2 2 2 2 2 2 2 2 2 2 2 2 . 2 2 1 2 Hottest 233 | 40 40 40 40 130 130 110 110 . 36 110 126 126 155 180 200 200 146 146 205 200 200 200 . 200 200 113 233 Shots Fired 929 | 2 24 50 12 67 35 41 6 . 1 18 53 18 12 20 15 13 12 4 37 51 12 13 . 17 100 142 154 Gun 324 | 2 24 50 12 . 6 34 2 . . 15 9 . . . . 1 2 1 10 . . . . . 20 36 100 Cannon 519 | . . . . 67 29 . . . . 2 41 14 12 12 10 6 1 1 18 47 6 11 . 17 80 95 50 Launcher 84 | . . . . . . 7 4 . 1 1 3 4 . 8 5 6 9 . 9 4 6 2 . . . 11 4 Special 2 | . . . . . . . . . . . . . . . . . . 2 . . . . . . . . . Kinetic 88 | 2 24 50 12 . . . . . . . . . . . . . . . . . . . . . . . . Thermal 357 | . . . . 24 5 . . . . 1 . . 12 12 10 5 . . 8 47 6 11 . 6 64 96 50 Explosive 11 | . . . . . . 7 . . . . . . . . 1 . . . . 1 . 2 . . . . . Electromagnetic 471 | . . . . 43 30 34 6 . 1 17 53 18 . 8 4 8 12 2 29 3 6 . . 11 36 46 104 Robot Hit Streak 33 | 2 18 14 10 14 21 33 1 . 2 5 24 6 9 10 14 15 5 9 11 13 15 15 . 29 30 33 28 Robot Miss Streak 5 | . 1 1 1 5 1 3 4 . . 4 1 1 1 1 . 2 1 . 1 5 1 1 . 1 2 1 2 Penetration Max . | . . . . . . . . . . . . . . . . . . . . . . . . . . . . Secondary Targets 6 | . . 2 2 . . 2 . . . . . . . . . . . . . . . . . . . . . Max Gunslinging Chain 1 | . . 1 1 . . 1 . . . . . . . . . . . . . . . . . . . . . Capacitor 76 | . . . . . . . . . . . . . . . . . . . . . . . . . . 76 . Shots Hit Robots 681 | 2 19 43 10 46 28 28 1 . 1 8 49 11 11 10 4 13 7 4 26 41 10 9 . 16 83 84 117 Core Hits 455 | 2 11 14 5 15 14 26 8 . 1 12 15 13 2 22 8 6 6 1 18 41 13 14 . 9 63 53 63 Critical Hits 12 | . . . . . 1 . . . . . . . . . . . . . . . . . . . 2 1 8 Critical Kills 3 | . . . . . . . . . . . . . . . . . . . . . . . . . 1 . 2 Critical Parts Destroyed 8 | . . . . . 1 . . . . . . . . . . . . . . . . . . . 1 1 5 Melee Attacks 2 | . . . . . . . . . . . . . . . . . . . . . . . . . . 2 . Kinetic 2 | . . . . . . . . . . . . . . . . . . . . . . . . . . 2 . Impact . | . . . . . . . . . . . . . . . . . . . . . . . . . . . . Slashing . | . . . . . . . . . . . . . . . . . . . . . . . . . . . . Piercing . | . . . . . . . . . . . . . . . . . . . . . . . . . . . . Sneak Attacks . | . . . . . . . . . . . . . . . . . . . . . . . . . . . . Combat Hostiles . | . . . . . . . . . . . . . . . . . . . . . . . . . . . . Follow-up Attacks . | . . . . . . . . . . . . . . . . . . . . . . . . . . . . Damage Inflicted 28110 | 23 238 519 117 1139 812 966 333 . 36 863 1259 923 299 1587 391 469 673 72 1116 2157 933 450 . 581 3296 4408 4450 Guns 5342 | 23 237 505 112 . 100 522 18 . . 154 153 . . . . 20 25 27 173 . . . . . 308 827 2138 Cannons 13302 | . . . . 1091 580 . . . . . 787 253 299 264 . 239 . 35 376 1787 227 296 . 581 2712 2162 1613 Explosions 9094 | . . . . 32 132 428 315 . 36 666 218 670 . 1323 391 210 648 . 567 301 706 154 . . 276 1322 699 Melee 30 | . . . . . . . . . . . . . . . . . . . . . . . . . . 30 . Ramming 342 | . 1 14 5 16 . 16 . . . 43 101 . . . . . . 10 . 69 . . . . . 67 . Kinetic 907 | 23 237 505 112 . . . . . . . . . . . . . . . . . . . . . . 30 . Thermal 12370 | . . . . 302 164 . . . . 475 105 258 299 631 78 209 62 . 131 1899 444 296 . 343 2447 2399 1828 Explosive 858 | . . . . . . 428 . . . . . . . . . . . . . . . 154 . . 276 . . Electromagnetic 13633 | . . . . 821 648 522 333 . 36 345 1053 665 . 956 313 260 611 62 985 189 489 . . 238 573 1912 2622 Impact . | . . . . . . . . . . . . . . . . . . . . . . . . . . . . Slashing . | . . . . . . . . . . . . . . . . . . . . . . . . . . . . Piercing . | . . . . . . . . . . . . . . . . . . . . . . . . . . . . Highest Corruption 19 | . . . . . . . . . . . . . . 3 2 3 . 5 . 4 4 . . 1 7 10 19 Average Corruption 5 | . . . . . . . . . . . . . . 1 2 1 . 3 . 3 2 . . 1 2 5 12 Corruption Purged 12 | . . . . . . . . . . . . . . . . 3 . . . . 4 . . . . 5 . Effects 175 | . . . . . . . . . . . . . . . 5 9 . 1 . 2 7 . . . 8 66 77 Message Errors 36 | . . . . . . . . . . . . . . . 3 3 . . . 1 2 . . . 4 12 11 Matter Fused 20 | . . . . . . . . . . . . . . . . 1 . 1 . . 1 . . . 2 5 10 Heat Flow Errors 13 | . . . . . . . . . . . . . . . 1 1 . . . . . . . . . 9 2 Energy Discharges 21 | . . . . . . . . . . . . . . . 1 1 . . . . 1 . . . 1 12 5 Parts Rejected 3 | . . . . . . . . . . . . . . . . . . . . 1 . . . . . 1 1 Data Loss (minor) 16 | . . . . . . . . . . . . . . . . 3 . . . . 3 . . . . 4 6 Data Loss (major) 5 | . . . . . . . . . . . . . . . . . . . . . . . . . . 2 3 Misfires 2 | . . . . . . . . . . . . . . . . . . . . . . . . . . . 2 Misdirections 11 | . . . . . . . . . . . . . . . . . . . . . . . . . . 3 8 Targeting Errors 41 | . . . . . . . . . . . . . . . . . . . . . . . . . 1 15 25 Weapon Failures 7 | . . . . . . . . . . . . . . . . . . . . . . . . . . 3 4 Overload Shots . | . . . . . . . . . . . . . . . . . . . . . . . . . . . . Overflow Damage 558 | . . . . 46 . 9 . . . 68 67 . . 10 9 . 3 . 18 34 21 . . . 52 142 79 Projectiles 338 | . . . . 46 . . . . . . 49 . . . . . . . . 34 . . . . 13 133 63 Explosions 197 | . . . . . . 7 . . . 68 . . . 10 9 . 3 . 18 . 21 . . . 39 6 16 Melee 23 | . . . . . . 2 . . . . 18 . . . . . . . . . . . . . . 3 . Knockbacks 2 | . . . . . . . . . . . 1 . . . . . . . . 1 . . . . . . . Impact 2 | . . . . . . . . . . . 1 . . . . . . . . 1 . . . . . . . Kinetic . | . . . . . . . . . . . . . . . . . . . . . . . . . . . . Secondary . | . . . . . . . . . . . . . . . . . . . . . . . . . . . . Self-Inflicted Damage 378 | . . . . . . 43 . . . 69 . . . 151 . . 25 . . . . . . . . 90 . Shots 13 | . . . . . . 1 . . . 3 . . . 3 . . 1 . . . . . . . . 5 . Rammed 24 | . 1 3 1 3 . 1 . . . 4 4 . . . . . . 1 . 3 . . . . . 3 . Targets Rammed 26 | . 1 3 1 3 . 1 . . . 4 6 . . . . . . 1 . 3 . . . . . 3 . Kicked . | . . . . . . . . . . . . . . . . . . . . . . . . . . . . Crushed 2 | . . . . . . . . . . . 2 . . . . . . . . . . . . . . . . Highest Temperature 309 | . 2 3 9 108 147 1 . . . . 19 6 156 222 171 120 42 22 116 209 104 210 . . 22 309 132 Average Temperature 52 | . 2 3 4 35 40 1 . . . . 8 3 61 84 34 37 17 12 46 86 46 98 . . 13 67 32 Received Heat Transfer 1805 | . 51 159 48 126 117 135 9 . . . 146 12 . 69 30 18 99 4 40 63 35 8 . 24 257 185 170 Siege Activations 15 | . . . . . . . . . . . . . . . . . . . 1 . . 1 . 2 7 4 . Total Turns 251 | . . . . . . . . . . . . . . . . . . . 19 . . 23 . 32 131 46 . Longest Duration 42 | . . . . . . . . . . . . . . . . . . . 19 . . 23 . 19 42 19 . Robots Corrupted 54 | . . . . 4 3 1 . . 1 . 5 4 . . . 1 4 . 5 . 3 . . 1 1 8 13 Combat Hostiles 53 | . . . . 4 3 1 . . 1 . 5 3 . . . 1 4 . 5 . 3 . . 1 1 8 13 Parts Fried 101 | . . . . 5 7 2 1 . . 2 7 3 . 1 4 1 2 . 10 . 7 . . 1 3 23 22 Impact Corruptions 4 | . . . . . . 1 . . . . 2 . . . . . . . . . . . . . . 1 . Robots Melted 2 | . . . . . . . . . . . . . . . . . . . . 1 . . . . 1 . . Combat Hostiles 2 | . . . . . . . . . . . . . . . . . . . . 1 . . . . 1 . . Parts Melted 31 | . . . . . . . . . . . . . . 4 . 1 . . . 7 . . . 2 6 1 10 Heat Transferred 12057 | . . . . 420 187 . . . . 300 100 250 407 848 100 212 50 . 125 1925 399 350 . 325 2799 1926 1334 Parts Sabotaged . | . . . . . . . . . . . . . . . . . . . . . . . . . . . . Parts Stolen . | . . . . . . . . . . . . . . . . . . . . . . . . . . . . Parts Stripped . | . . . . . . . . . . . . . . . . . . . . . . . . . . . . Power Chain Reactions 24 | . . . . 1 2 . . . . 1 2 2 . 4 1 . 1 . . 1 4 . . . . 4 1 Missiles Intercepted . | . . . . . . . . . . . . . . . . . . . . . . . . . . . . Alert | -11 -10 -9 -9 -8 -7 -7 -7 -7 -6 -6 -6 -6 -6 -6 -5 -5 -5 -5 -4 -4 -4 -4 -4 -3 -3 -3 -3 ------- Run | Scr Mat Mat Min Mat Fac Low Low Dat Pro Fac Ext Cet Arc Hub Fac Upp Upp War Pro Fac Upp Upp Zhi Pro Res Qua Sec Peak Influence 1144 | 5 183 205 149 337 206 . . . . 297 104 265 278 1144 560 . . . . 327 . . . . 434 323 1099 Initial 560 | . 3 . 79 57 49 . . . . . . . 106 97 560 . . . . 103 . . . . 33 83 163 Average 219 | 1 78 113 143 166 109 . . . . 159 36 212 218 411 481 . . . . 194 . . . . 172 180 605 Maximum Alert Level 4 | . . 1 . 1 1 . . . . 1 . 1 1 4 2 . . . . 1 . . . . 2 1 3 Low Security (%) 59 | 100 100 87 100 65 98 . . . . 56 100 19 31 51 . . . . . 61 . . . . 67 55 3 Level 1 23 | . . 12 . 34 1 . . . . 43 . 80 68 1 7 . . . . 38 . . . . 18 44 12 Level 2 13 | . . . . . . . . . . . . . . 25 92 . . . . . . . . . 14 . 61 Level 3 2 | . . . . . . . . . . . . . . 19 . . . . . . . . . . . . 22 Level 4 . | . . . . . . . . . . . . . . 1 . . . . . . . . . . . . . Level 5 . | . . . . . . . . . . . . . . . . . . . . . . . . . . . . High Security . | . . . . . . . . . . . . . . . . . . . . . . . . . . . . Max Security . | . . . . . . . . . . . . . . . . . . . . . . . . . . . . Squads Dispatched 42 | . 1 1 . . 2 . . . . 3 2 . . 5 3 . . . . 3 . . . . 4 9 9 Investigation 4 | . . 1 . . . . . . . . . . . 1 . . . . . . . . . . . 1 1 Extermination 11 | . . . . . 1 . . . . . . . . 1 . . . . . 2 . . . . 1 3 3 Reinforcement 21 | . 1 . . . 1 . . . . 3 2 . . 2 1 . . . . 1 . . . . 3 5 2 Assault 4 | . . . . . . . . . . . . . . . 2 . . . . . . . . . . . 2 Garrison 2 | . . . . . . . . . . . . . . 1 . . . . . . . . . . . . 1 Intercept . | . . . . . . . . . . . . . . . . . . . . . . . . . . . . Construction Impeded 5 | . . . . . . . . . . . . . . 1 1 . . . . . . . . . 2 . 1 Haulers Reinforced 1 | . . . . . . . . . . 1 . . . . . . . . . . . . . . . . . Stealth | -11 -10 -9 -9 -8 -7 -7 -7 -7 -6 -6 -6 -6 -6 -6 -5 -5 -5 -5 -4 -4 -4 -4 -4 -3 -3 -3 -3 --------- Run | Scr Mat Mat Min Mat Fac Low Low Dat Pro Fac Ext Cet Arc Hub Fac Upp Upp War Pro Fac Upp Upp Zhi Pro Res Qua Sec Distress Signals 10 | . 1 1 . 1 . . . . . . 1 1 . . 1 . . . . . . . . . 2 . 2 Communications Jammed . | . . . . . . . . . . . . . . . . . . . . . . . . . . . . Distress Signals . | . . . . . . . . . . . . . . . . . . . . . . . . . . . . Times Spotted 359 | . 10 10 3 18 10 16 4 . . 6 19 14 4 17 6 5 5 29 14 19 7 9 . 3 25 45 61 Peak Tracking Total 10 | . 6 5 3 4 2 7 4 . . 3 5 5 2 8 3 2 3 10 3 5 4 4 . 2 7 5 8 Tactical Retreats 14 | . 1 . . 1 1 1 . . . 1 . 2 . . . . . . 1 . . . . . 3 1 2 Traps | -11 -10 -9 -9 -8 -7 -7 -7 -7 -6 -6 -6 -6 -6 -6 -5 -5 -5 -5 -4 -4 -4 -4 -4 -3 -3 -3 -3 ------- Run | Scr Mat Mat Min Mat Fac Low Low Dat Pro Fac Ext Cet Arc Hub Fac Upp Upp War Pro Fac Upp Upp Zhi Pro Res Qua Sec Traps Triggered 7 | . . 1 . . . . . . . . 2 . . . 1 . . . . . . . . . 2 1 . Indirectly . | . . . . . . . . . . . . . . . . . . . . . . . . . . . . Trap Hack Attempts . | . . . . . . . . . . . . . . . . . . . . . . . . . . . . Triggered . | . . . . . . . . . . . . . . . . . . . . . . . . . . . . Disarmed . | . . . . . . . . . . . . . . . . . . . . . . . . . . . . Reprogrammed . | . . . . . . . . . . . . . . . . . . . . . . . . . . . . Reused . | . . . . . . . . . . . . . . . . . . . . . . . . . . . . Traps Extracted . | . . . . . . . . . . . . . . . . . . . . . . . . . . . . Installed . | . . . . . . . . . . . . . . . . . . . . . . . . . . . . Triggered 7 | . . . . . . . . . 1 . . . . . . 1 . 5 . . . . . . . . . Machines | -11 -10 -9 -9 -8 -7 -7 -7 -7 -6 -6 -6 -6 -6 -6 -5 -5 -5 -5 -4 -4 -4 -4 -4 -3 -3 -3 -3 ---------- Run | Scr Mat Mat Min Mat Fac Low Low Dat Pro Fac Ext Cet Arc Hub Fac Upp Upp War Pro Fac Upp Upp Zhi Pro Res Qua Sec Machines Disabled 40 | . . . . 1 1 . . . . 8 . 1 1 11 . . . . . . . . . . 1 12 4 Max in Single Turn 6 | . . . . 1 1 . . . . 6 . . 1 5 . . . . . . . . . . 1 1 1 Garrison Access 3 | . . . . 1 . . . . . . . . . . . . . . . . . . . . 1 . 1 Network Hub 1 | . . . . . . . . . . . . . . 1 . . . . . . . . . . . . . Energy Cycler 1 | . . . . . . . . . . . 1 . . . . . . . . . . . . . . . . Machines Sabotaged . | . . . . . . . . . . . . . . . . . . . . . . . . . . . . Garrisons Compromised . | . . . . . . . . . . . . . . . . . . . . . . . . . . . . Overloaded Fab Kills . | . . . . . . . . . . . . . . . . . . . . . . . . . . . . Fab Network Shutdowns . | . . . . . . . . . . . . . . . . . . . . . . . . . . . . Hacking | -11 -10 -9 -9 -8 -7 -7 -7 -7 -6 -6 -6 -6 -6 -6 -5 -5 -5 -5 -4 -4 -4 -4 -4 -3 -3 -3 -3 --------- Run | Scr Mat Mat Min Mat Fac Low Low Dat Pro Fac Ext Cet Arc Hub Fac Upp Upp War Pro Fac Upp Upp Zhi Pro Res Qua Sec Machines Accessed 50 | . 3 . . 5 3 1 . 4 . 1 7 1 . 3 1 . . 3 . 2 . 1 4 . 3 7 1 Terminals 33 | . 3 . . 3 2 . . . . 1 7 1 . 3 1 . . . . 2 . 1 . . 2 7 . Fabricators 1 | . . . . . 1 . . . . . . . . . . . . . . . . . . . . . . Repair Stations 1 | . . . . 1 . . . . . . . . . . . . . . . . . . . . . . . Recycling Units . | . . . . . . . . . . . . . . . . . . . . . . . . . . . . Scanalyzers . | . . . . . . . . . . . . . . . . . . . . . . . . . . . . Garrison Access 3 | . . . . 1 . . . . . . . . . . . . . . . . . . . . 1 . 1 Total Hacks 171 | . 8 . . 15 8 1 . 30 . 3 21 2 . 9 4 . . 7 . 4 . 3 17 . 9 28 2 Successful 108 | . 5 . . 7 5 1 . 30 . 1 11 1 . 3 2 . . 7 . 1 . 2 17 . 5 9 1 Failed 62 | . 3 . . 8 3 . . . . 2 9 1 . 6 2 . . . . 3 . 1 . . 4 19 1 Catastrophic 14 | . 1 . . 2 . . . . . 1 1 . . 1 1 . . . . 1 . 1 . . 1 4 . Database Lockouts 1 | . . . . . . . . . . . 1 . . . . . . . . . . . . . . . . Manual 76 | . 5 . . 7 2 . . . . 3 15 2 . 4 4 . . 1 . . . 3 . . 7 21 2 Terminals 103 | . 8 . . 8 5 . . . . 3 21 2 . 9 4 . . . . 4 . 3 . . 8 28 . Fabricators 3 | . . . . . 3 . . . . . . . . . . . . . . . . . . . . . . Repair Stations 5 | . . . . 5 . . . . . . . . . . . . . . . . . . . . . . . Recycling Units . | . . . . . . . . . . . . . . . . . . . . . . . . . . . . Scanalyzers . | . . . . . . . . . . . . . . . . . . . . . . . . . . . . Garrison Access 5 | . . . . 2 . . . . . . . . . . . . . . . . . . . . 1 . 2 Terminal Hacks 90 | . 4 . . 3 1 1 . 30 . 1 8 1 . 2 2 . . 7 . 1 . 2 17 . 3 7 . Record 23 | . . . . . . . . 11 . . . . . . . . . 7 . . . . 5 . . . . Part Schematic 16 | . 1 . . 1 . . . 10 . . . . . . . . . . . . . . 4 . . . . Robot Schematic 6 | . . . . . . . . 6 . . . . . . . . . . . . . . . . . . . Robot Analysis 6 | . 1 . . . . . . . . . 1 . . . . . . . . . . . 4 . . . . Prototype ID Bank 13 | . 2 . . 1 . . . 3 . . 2 . . . . . . . . . . . 4 . . 1 . Open Door 2 | . . . . . . 1 . . . . . 1 . . . . . . . . . . . . . . . Level Access Points 1 | . . . . . . . . . . . . . . . . . . . . . . 1 . . . . . Branch Access Points 4 | . . . . . . . . . . . . . . . 1 . . . . 1 . 1 . . 1 . . Terminal Index 3 | . . . . . 1 . . . . . 1 . . . . . . . . . . . . . . 1 . Alert Level 1 | . . . . . . . . . . . 1 . . . . . . . . . . . . . . . . Unreport Threat 8 | . . . . 1 . . . . . 1 2 . . . 1 . . . . . . . . . 1 2 . Locate Traps 3 | . . . . . . . . . . . 1 . . 1 . . . . . . . . . . . 1 . Recall Reinforcements 2 | . . . . . . . . . . . . . . . . . . . . . . . . . . 2 . Zone Layout 2 | . . . . . . . . . . . . . . 1 . . . . . . . . . . 1 . . Fabricator Hacks 3 | . . . . . 3 . . . . . . . . . . . . . . . . . . . . . . Load Schematic 1 | . . . . . 1 . . . . . . . . . . . . . . . . . . . . . . Build 2 | . . . . . 2 . . . . . . . . . . . . . . . . . . . . . . Repair Station Hacks 3 | . . . . 3 . . . . . . . . . . . . . . . . . . . . . . . Scan Component 2 | . . . . 2 . . . . . . . . . . . . . . . . . . . . . . . Repair 1 | . . . . 1 . . . . . . . . . . . . . . . . . . . . . . . Recycling Unit Hacks . | . . . . . . . . . . . . . . . . . . . . . . . . . . . . Scanalyzer . | . . . . . . . . . . . . . . . . . . . . . . . . . . . . Garrison Access Hacks 2 | . . . . 1 . . . . . . . . . . . . . . . . . . . . 1 . . Seal Access 2 | . . . . 1 . . . . . . . . . . . . . . . . . . . . 1 . . Unauthorized Hacks 10 | . 1 . . . 1 . . . . . 3 . . 1 . . . . . . . . . . 1 2 1 Terminals 9 | . 1 . . . 1 . . . . . 3 . . 1 . . . . . . . . . . 1 2 . Track 4 | . 1 . . . . . . . . . 1 . . 1 . . . . . . . . . . . 1 . Botnet 5 | . . . . . 1 . . . . . 2 . . . . . . . . . . . . . 1 1 . Fabricators . | . . . . . . . . . . . . . . . . . . . . . . . . . . . . Repair Stations . | . . . . . . . . . . . . . . . . . . . . . . . . . . . . Recycling Units . | . . . . . . . . . . . . . . . . . . . . . . . . . . . . Scanalyzers . | . . . . . . . . . . . . . . . . . . . . . . . . . . . . Garrison Access 1 | . . . . . . . . . . . . . . . . . . . . . . . . . . . 1 Jam 1 | . . . . . . . . . . . . . . . . . . . . . . . . . . . 1 Data Cores Recovered 1 | . . . . . . . . . . . 1 . . . . . . . . . . . . . . . . Used 1 | . . . . . . . . . . . 1 . . . . . . . . . . . . . . . . Hacking Detections 36 | . 3 . . 5 3 . . . . 1 7 1 . 3 1 . . . . 2 . 1 . . 2 7 . Full Trace Events 1 | . . . . . . . . . . . . . . 1 . . . . . . . . . . . . . Feedback Events . | . . . . . . . . . . . . . . . . . . . . . . . . . . . . Feedback Blocked . | . . . . . . . . . . . . . . . . . . . . . . . . . . . . Robot Schematics Acquired 6 | . . . . . . . . 6 . . . . . . . . . . . . . . . . . . . Robots Built . | . . . . . . . . . . . . . . . . . . . . . . . . . . . . Matter . | . . . . . . . . . . . . . . . . . . . . . . . . . . . . Time . | . . . . . . . . . . . . . . . . . . . . . . . . . . . . Total Robot Build Rating . | . . . . . . . . . . . . . . . . . . . . . . . . . . . . Part Schematics Acquired 16 | . 1 . . 1 . . . 10 . . . . . . . . . . . . . . 4 . . . . Parts Built 4 | . . . . . 4 . . . . . . . . . . . . . . . . . . . . . . Matter 292 | . . . . . 292 . . . . . . . . . . . . . . . . . . . . . . Time 146 | . . . . . 146 . . . . . . . . . . . . . . . . . . . . . . Total Part Build Rating 12 | . . . . . 12 . . . . . . . . . . . . . . . . . . . . . . Parts Repaired 1 | . . . . 1 . . . . . . . . . . . . . . . . . . . . . . . Time 26 | . . . . 26 . . . . . . . . . . . . . . . . . . . . . . . Parts Recycled . | . . . . . . . . . . . . . . . . . . . . . . . . . . . . Recycled Matter . | . . . . . . . . . . . . . . . . . . . . . . . . . . . . Retrieved Matter . | . . . . . . . . . . . . . . . . . . . . . . . . . . . . Retrieved Components . | . . . . . . . . . . . . . . . . . . . . . . . . . . . . Parts Scanalyzed . | . . . . . . . . . . . . . . . . . . . . . . . . . . . . Part Schematics Acquired . | . . . . . . . . . . . . . . . . . . . . . . . . . . . . Parts Damaged . | . . . . . . . . . . . . . . . . . . . . . . . . . . . . Bothacking | -11 -10 -9 -9 -8 -7 -7 -7 -7 -6 -6 -6 -6 -6 -6 -5 -5 -5 -5 -4 -4 -4 -4 -4 -3 -3 -3 -3 ------------ Run | Scr Mat Mat Min Mat Fac Low Low Dat Pro Fac Ext Cet Arc Hub Fac Upp Upp War Pro Fac Upp Upp Zhi Pro Res Qua Sec Used RIF Installer . | . . . . . . . . . . . . . . . . . . . . . . . . . . . . Robots Hacked . | . . . . . . . . . . . . . . . . . . . . . . . . . . . . Non-combat . | . . . . . . . . . . . . . . . . . . . . . . . . . . . . Combat . | . . . . . . . . . . . . . . . . . . . . . . . . . . . . Robot Hacks Applied . | . . . . . . . . . . . . . . . . . . . . . . . . . . . . Relay Couplers Released 3 | . . . . 1 . . . . . . . . . . . . . . . . . . . . 2 . . Machine Destruction 3 | . . . . 1 . . . . . . . . . . . . . . . . . . . . 2 . . Robots Rewired 14 | . . . . . . 2 . . . . 8 . . . . . . 4 . . . . . . . . . Allies Hacked . | . . . . . . . . . . . . . . . . . . . . . . . . . . . . Hacks Repelled . | . . . . . . . . . . . . . . . . . . . . . . . . . . . . Allies | -11 -10 -9 -9 -8 -7 -7 -7 -7 -6 -6 -6 -6 -6 -6 -5 -5 -5 -5 -4 -4 -4 -4 -4 -3 -3 -3 -3 -------- Run | Scr Mat Mat Min Mat Fac Low Low Dat Pro Fac Ext Cet Arc Hub Fac Upp Upp War Pro Fac Upp Upp Zhi Pro Res Qua Sec Total Allies 23 | . . . . . . 2 . . . . 12 5 . . . . . 4 . . . . . . . . . Largest Group 7 | . . . . . . 2 . . . . 7 6 4 3 2 2 . 4 2 . . . . . . . . Highest-Rated Group 619 | . . . . . . 48 . . . . 200 619 431 282 188 181 . 185 95 . . . . . . . . Highest-Rated Ally 149 | . . . . . . 32 . . . . 149 149 149 94 94 94 . 49 49 . . . . . . . . Total Orders . | . . . . . . . . . . . . . . . . . . . . . . . . . . . . Ally Attacks 176 | . . . . . . 5 . . . . 48 17 19 17 12 2 . 42 14 . . . . . . . . Total Damage 5159 | . . . . . . 65 . . . . 1101 534 741 587 368 91 . 1211 461 . . . . . . . . Kills 33 | . . . . . . . . . . . 5 4 3 8 4 1 . 6 2 . . . . . . . . Allies Corrupted 2 | . . . . . . . . . . . . . . . . 2 . . . . . . . . . . . Allies Melted . | . . . . . . . . . . . . . . . . . . . . . . . . . . . . Intel | -11 -10 -9 -9 -8 -7 -7 -7 -7 -6 -6 -6 -6 -6 -6 -5 -5 -5 -5 -4 -4 -4 -4 -4 -3 -3 -3 -3 ------- Run | Scr Mat Mat Min Mat Fac Low Low Dat Pro Fac Ext Cet Arc Hub Fac Upp Upp War Pro Fac Upp Upp Zhi Pro Res Qua Sec Robot Analysis Total 6 | . 1 . . . . . . . . . 1 . . . . . . . . . . . 4 . . . . Derelict Logs Recovered 10 | . . . 1 . . 2 . . 2 . . . . . . . 1 . 1 . 2 1 . . . . . Drone Launches . | . . . . . . . . . . . . . . . . . . . . . . . . . . . . Drone Recoveries . | . . . . . . . . . . . . . . . . . . . . . . . . . . . . Exploration | -11 -10 -9 -9 -8 -7 -7 -7 -7 -6 -6 -6 -6 -6 -6 -5 -5 -5 -5 -4 -4 -4 -4 -4 -3 -3 -3 -3 ------------- Run | Scr Mat Mat Min Mat Fac Low Low Dat Pro Fac Ext Cet Arc Hub Fac Upp Upp War Pro Fac Upp Upp Zhi Pro Res Qua Sec Turns Passed 17690 | 93 404 248 123 712 855 850 323 167 555 493 918 288 112 273 525 1538 410 1278 616 773 1315 372 253 476 813 1906 1001 Spaces Moved 7675 | 55 204 93 54 271 317 411 167 90 298 247 431 105 46 140 287 397 232 621 318 383 236 204 144 249 323 915 437 Core 14 | 14 . . . . . . . . . . . . . . . . . . . . . . . . . . . Treads 7661 | 41 204 93 54 271 317 411 167 90 298 247 431 105 46 140 287 397 232 621 318 383 236 204 144 249 323 915 437 Legs . | . . . . . . . . . . . . . . . . . . . . . . . . . . . . Wheels . | . . . . . . . . . . . . . . . . . . . . . . . . . . . . Hover . | . . . . . . . . . . . . . . . . . . . . . . . . . . . . Flight . | . . . . . . . . . . . . . . . . . . . . . . . . . . . . Fastest Speed 50 | 50 160 160 160 180 180 185 185 185 185 166 166 162 165 165 165 165 165 165 165 165 165 165 165 165 163 155 155 Average Speed 169 | 142 168 172 178 180 184 185 185 185 185 174 171 165 165 165 165 165 165 165 165 165 165 165 165 165 164 166 155 Slowest Speed 186 | 160 180 180 180 180 185 185 185 185 185 186 186 166 165 165 165 165 165 165 165 165 165 165 165 165 170 170 155 Overloaded Moves . | . . . . . . . . . . . . . . . . . . . . . . . . . . . . Propulsion Burnouts . | . . . . . . . . . . . . . . . . . . . . . . . . . . . . Robots Hopped . | . . . . . . . . . . . . . . . . . . . . . . . . . . . . Cave-ins Triggered . | . . . . . . . . . . . . . . . . . . . . . . . . . . . . Teleports 3 | . . . . . . . . . . . . . . . . . . . . . . . . . . . 3 Exploration Rate (%) 40 | 4 37 14 20 19 9 64 36 72 53 10 76 58 63 21 13 60 38 79 47 14 43 41 60 50 10 85 24 Regions Visited 27 Branch Regions 19 Pre-discovered Areas 7 | . . . 1 . . . . 1 . . . . . . . . 1 1 . . . . 3 . . . . Known Exits Taken 5 | . . . . . . . . . . . . . . 1 1 . . . . 1 . . . 1 1 . . Unknown Exits Taken 22 | 1 1 1 1 1 1 1 1 1 1 1 1 1 1 . . 1 1 1 1 . 1 1 1 . . 1 . Scrap Searched 21 | . . . . . . 3 1 . 4 . . . . . . 2 2 . 1 . 4 3 . 1 . . . Spaces Dug 87 | . . . . . 1 30 . . . 1 . . . 5 11 . . . 1 5 . . . . 4 25 4 Terrain Destroyed 517 | . . . . 18 10 57 . . . 73 . 6 . 186 15 . 9 . 1 9 26 8 . . 28 46 25 Melee . | . . . . . . . . . . . . . . . . . . . . . . . . . . . . Projectile 82 | . . . . 14 1 . . . . 1 . . . 1 8 . . . 1 1 . . . . 6 36 13 AOE 435 | . . . . 4 9 57 . . . 72 . 6 . 185 7 . 9 . . 8 26 8 . . 22 10 12 Terrain Rammed . | . . . . . . . . . . . . . . . . . . . . . . . . . . . . Walls Destroyed . | . . . . . . . . . . . . . . . . . . . . . . . . . . . . Machines Disabled . | . . . . . . . . . . . . . . . . . . . . . . . . . . . . Actions | -11 -10 -9 -9 -8 -7 -7 -7 -7 -6 -6 -6 -6 -6 -6 -5 -5 -5 -5 -4 -4 -4 -4 -4 -3 -3 -3 -3 --------- Run | Scr Mat Mat Min Mat Fac Low Low Dat Pro Fac Ext Cet Arc Hub Fac Upp Upp War Pro Fac Upp Upp Zhi Pro Res Qua Sec Total 11445 | 65 242 132 70 432 558 458 175 90 301 286 559 204 69 164 320 1266 247 873 368 448 1146 220 161 298 477 1226 590 Wait 2463 | . 11 8 . 67 177 . . . . . 12 66 16 1 3 831 . 201 16 8 898 6 . 15 61 50 16 Move 7648 | 54 203 92 53 270 316 410 166 89 297 246 430 104 45 139 286 396 231 620 317 382 235 203 143 248 322 914 437 Hop . | . . . . . . . . . . . . . . . . . . . . . . . . . . . . Pick Up 137 | 4 9 3 3 23 9 2 . . . 6 4 4 . 3 4 6 2 8 2 6 . . 3 5 5 22 4 Fast Attach 60 | 6 1 . 2 . . . . . 1 2 . 4 . . 1 4 . 2 . 2 . . 6 1 6 18 4 Attach 52 | . . 1 2 3 6 1 . . . 4 2 1 . 1 2 2 1 1 . 3 . . 2 . 4 14 2 Detach 2 | . . . . . . . . . . . . . . . . . . . . . . . . . 2 . . Swap 176 | . 1 . . 12 15 6 3 1 1 7 12 3 2 3 7 8 1 7 6 9 3 2 . 6 11 18 32 Drop 188 | . 4 . 3 18 16 3 1 . 1 5 13 11 . 3 3 10 1 11 4 7 . . 7 9 13 40 5 Fire 608 | 1 12 25 6 36 19 24 5 . 1 12 28 11 6 14 14 9 11 3 23 28 10 8 . 14 53 145 90 Melee 2 | . . . . . . . . . . . . . . . . . . . . . . . . . . 2 . Ram . | . . . . . . . . . . . . . . . . . . . . . . . . . . . . Kick . | . . . . . . . . . . . . . . . . . . . . . . . . . . . . Crush 26 | . 1 3 1 3 . 1 . . . 4 6 . . . . . . 1 . 3 . . . . . 3 . Escape Stasis 4 | . . . . . . . . . . . 4 . . . . . . . . . . . . . . . . Rewire 79 | . . . . . . 11 . . . . 48 . . . . . . 19 . . . 1 . . . . . Trap . | . . . . . . . . . . . . . . . . . . . . . . . . . . . . Miscellaneous . | . . . . . . . . . . . . . . . . . . . . . . . . . . . . Route ------- -11/Scrapyard -10/Materials -9/Materials -9/Mines -8/Materials -7/Factory -7/Lower Caves -7/Lower Caves -7/Data Miner -6/Proximity Caves -6/Factory (discovered 4 exits: Fac x2 / Low / *Ext) -6/Extension (discovered 3 exits: *Fac x2 / *Cet) -6/Cetus -6/Archives -6/Hub_04(d) -5/Factory (discovered 2 exits: *Upp x2) -5/Upper Caves -5/Upper Caves (discovered 2 exits: *Fac / *War) -5/Warlord -4/Proximity Caves -4/Factory (discovered 3 exits: *Upp x2 / Arm) -4/Upper Caves -4/Upper Caves (discovered 2 exits: Res / *Zhi) -4/Zhirov -3/Proximity Caves -3/Research (discovered 2 exits: *Qua x2) -3/Quarantine (discovered 2 exits: [*Res] / *Sec) -3/Section 7 (discovered 1 exit: [*Res]) History --------- Turn | Location | Event 22 | -11/Scrapyard | Discovered new exit (range 14) 94 | -11/Scrapyard | Entered Materials 229 | -10/Materials | Discovered new exit (range 6) 315 | -10/Materials | Build established: Mutant 498 | -10/Materials | Entered another Materials area 498 | -9/Materials | Evolved 2 slots: Utility x2 651 | -9/Materials | Discovered new exit (range 13) 746 | -9/Materials | Entered Mines 854 | -9/Mines | Learned location of Zion (-6) 859 | -9/Mines | Discovered new exit (range 8) 869 | -9/Mines | Entered Materials 869 | -8/Materials | Evolved 2 slots: Propulsion x1, Utility x1 1155 | -8/Materials | Build established: Scavenger-Mutant 1191 | -8/Materials | Repaired Lgt. Treads 1559 | -8/Materials | Discovered new exit (range 4) 1581 | -8/Materials | Entered Factory 1581 | -7/Factory | Evolved 2 slots: Propulsion x1, Utility x1 1703 | -7/Factory | Fabricated Arm. Treads (x2) 1788 | -7/Factory | Fabricated Arm. Treads (x2) 1911 | -7/Factory | Build established: Hauler-Mutant 2381 | -7/Factory | Discovered new exit (range 12) 2436 | -7/Factory | Entered Lower Caves 2538 | -7/Lower Caves | Attracted the attention of an 0b10 outpost 3092 | -7/Lower Caves | Learned location of 1 exit from Factory 3093 | -7/Lower Caves | Encountered a Warlord checkpoint 3133 | -7/Lower Caves | Learned location of 1 exit from Factory 3265 | -7/Lower Caves | Discovered new exit (range 9) 3286 | -7/Lower Caves | Entered another Lower Caves area 3596 | -7/Lower Caves | Discovered new exit (range 8) 3609 | -7/Lower Caves | Entered Data Miner 3609 | -7/Data Miner | Discovered new exit (range 6) 3645 | -7/Data Miner | Met Data Miner 3696 | -7/Data Miner | Learned location of Section 7 (-3) 3696 | -7/Data Miner | Acquired the access code to Warlord's prototype stash 3724 | -7/Data Miner | Received God Mode back door access code from Data Miner 3776 | -7/Data Miner | Entered Proximity Caves 3902 | -6/Proximity Caves | Learned Factory security intel 4178 | -6/Proximity Caves | Learned 4 Factory zone layouts 4320 | -6/Proximity Caves | Discovered new exit (range 7) 4331 | -6/Proximity Caves | Entered Factory 4331 | -6/Factory | Evolved 2 slots: Power x1, Propulsion x1 4332 | -6/Factory | Identified exit to Factory 4333 | -6/Factory | Identified exit to Lower Caves 4744 | -6/Factory | Build established: Scavenger-Mutant 4764 | -6/Factory | Discovered new exit (range 15) 4824 | -6/Factory | Entered Extension 5006 | -6/Extension | Central database locked down 5210 | -6/Extension | Rescued a captive Derelict 5253 | -6/Extension | Rescued a captive Derelict 5267 | -6/Extension | Rescued a captive Derelict 5289 | -6/Extension | Spotted B-75 Beast 5308 | -6/Extension | Destroyed B-75 Beast 5375 | -6/Extension | Discovered exit to Factory (range 4) 5418 | -6/Extension | Build established: Hauler-Mutant 5548 | -6/Extension | Energy Cycler disabled 5641 | -6/Extension | Rescued A7 5721 | -6/Extension | Discovered exit to Factory (range 10) 5723 | -6/Extension | Discovered new exit (range 6) 5742 | -6/Extension | Entered Cetus 5742 | -6/Cetus | Accompanied by 1 ally (A7) 5747 | -6/Cetus | Acquired a Cetus Manufacturing Module code from A7 5764 | -6/Cetus | Spotted Cetus Guard 5764 | -6/Cetus | Spotted Cetus Guard 5769 | -6/Cetus | Spotted Cetus Guard 5770 | -6/Cetus | Destroyed Cetus Guard 5772 | -6/Cetus | Allies destroyed Cetus Guard 5773 | -6/Cetus | Destroyed Cetus Guard 5773 | -6/Cetus | Spotted Cetus Guard 5776 | -6/Cetus | Destroyed Cetus Guard 5900 | -6/Cetus | Started Cetus Manufacturing Module 5912 | -6/Cetus | Escorted A7 to Cetus Mainframe 5925 | -6/Cetus | Manufactured an Enhanced Grunt 5941 | -6/Cetus | Discovered new exit (range 15) 5950 | -6/Cetus | Manufactured an Enhanced Grunt 5975 | -6/Cetus | Manufactured an Enhanced Grunt 6000 | -6/Cetus | Manufactured an Enhanced Grunt 6025 | -6/Cetus | Manufactured an Enhanced Grunt 6030 | -6/Cetus | Entered Archives 6030 | -6/Archives | Accompanied by 4 allies (A7) 6035 | -6/Archives | Received a hacking code to weaken MAIN.C 6106 | -6/Archives | Discovered new exit (range 15) 6142 | -6/Archives | Entered Hub_04(d) 6142 | -6/Hub_04(d) | Accompanied by 3 allies 6286 | -6/Hub_04(d) | Incoming investigation squad redirected 6313 | -6/Hub_04(d) | Destroyed 7 combat bots 6329 | -6/Hub_04(d) | Garrison activated, responded to threat 6361 | -6/Hub_04(d) | Discovered exit to Factory (range 6) 6397 | -6/Hub_04(d) | Network Hub disabled 6415 | -6/Hub_04(d) | Entered Factory 6415 | -5/Factory | Accompanied by 2 allies 6415 | -5/Factory | Evolved 2 slots: Propulsion x1, Utility x1 6560 | -5/Factory | Spotted B-75 Beast 6563 | -5/Factory | Identified exit to Upper Caves 6715 | -5/Factory | First assault squad dispatched 6940 | -5/Factory | Entered Upper Caves 6940 | -5/Upper Caves | Accompanied by 2 allies 6968 | -5/Upper Caves | Found Prototype Device 6968 | -5/Upper Caves | Identified Exp. Thermal Shield 8265 | -5/Upper Caves | Attracted the attention of an 0b10 checkpoint 8458 | -5/Upper Caves | Discovered new exit (range 13) 8478 | -5/Upper Caves | Entered another Upper Caves area 8526 | -5/Upper Caves | Discovered new exit (range 6) 8557 | -5/Upper Caves | Build established: Scavenger-Mutant 8840 | -5/Upper Caves | Discovered new exit (range 4) 8888 | -5/Upper Caves | Entered Warlord 8944 | -5/Warlord | System corruption cleaned by Quarantine Array 9167 | -5/Warlord | Learned Quarantine security intel 9167 | -5/Warlord | Learned Research fabricator intel 9169 | -5/Warlord | Learned 4 Research zone layouts 9169 | -5/Warlord | Learned 4 Research zone layouts 9169 | -5/Warlord | Learned 4 Command zone layouts 9169 | -5/Warlord | Learned 4 Command zone layouts 9658 | -5/Warlord | Warlord's base attacked by MAIN.C 9692 | -5/Warlord | Met Warlord 9710 | -5/Warlord | Opened Warlord's prototype stash 9716 | -5/Warlord | Found Prototype Reactor 9716 | -5/Warlord | Identified Vortex Chain Reactor 9723 | -5/Warlord | Found Exp. Targeting Computer 9732 | -5/Warlord | Found Prototype Processor 9811 | -5/Warlord | P-70 Sage assimilated allied P8-5C1(g) 9998 | -5/Warlord | Build established: Hauler-Mutant 10008 | -5/Warlord | Warlord forces counterattacked 10021 | -5/Warlord | Spotted Striker 10090 | -5/Warlord | Spotted Executioner 10093 | -5/Warlord | Spotted Executioner 10140 | -5/Warlord | Discovered new exit (range 12) 10166 | -5/Warlord | Entered Proximity Caves 10166 | -4/Proximity Caves | Accompanied by 2 allies 10338 | -4/Proximity Caves | Spotted B-86 Titan 10345 | -4/Proximity Caves | Build established: Scavenger-Mutant 10349 | -4/Proximity Caves | Learned Research interactive machine intel 10385 | -4/Proximity Caves | Destroyed B-86 Titan 10765 | -4/Proximity Caves | Discovered new exit (range 7) 10782 | -4/Proximity Caves | Entered Factory 10782 | -4/Factory | Evolved 2 slots: Utility x2 11312 | -4/Factory | Identified exit to Upper Caves 11312 | -4/Factory | Identified exit to Armory 11555 | -4/Factory | Entered Upper Caves 11556 | -4/Upper Caves | Encountered a Warlord checkpoint 11572 | -4/Upper Caves | Learned Research garrison access intel 12826 | -4/Upper Caves | Attracted the attention of an 0b10 checkpoint 12848 | -4/Upper Caves | Discovered new exit (range 14) 12855 | -4/Upper Caves | Learned Research emergency access door positions 12870 | -4/Upper Caves | Entered another Upper Caves area 12900 | -4/Upper Caves | Identified exit to Research 12967 | -4/Upper Caves | Attracted the attention of an 0b10 checkpoint 13018 | -4/Upper Caves | Destroyed 7 combat bots 13061 | -4/Upper Caves | Encountered a Warlord checkpoint 13151 | -4/Upper Caves | Learned Research terminal intel 13220 | -4/Upper Caves | Discovered new exit (range 15) 13242 | -4/Upper Caves | Entered Zhirov 13242 | -4/Zhirov | Discovered new exit (range 3) 13272 | -4/Zhirov | Met Zhirov 13302 | -4/Zhirov | Learned location of Quarantine (-3) 13302 | -4/Zhirov | Learned location of Testing (-2) 13302 | -4/Zhirov | Learned location of Command (-1) 13318 | -4/Zhirov | Zhirov requested help retrieving the SGEMP Prototype 13345 | -4/Zhirov | Found Alien Artifact 13345 | -4/Zhirov | Identified Integrated Reactor 13345 | -4/Zhirov | Installed Integrated Reactor, increased core energy generation (+10) 13401 | -4/Zhirov | Identified Exp. Armor Integrity Analyzer 13425 | -4/Zhirov | Found Alien Artifact 13495 | -4/Zhirov | Entered Proximity Caves 13619 | -3/Proximity Caves | Spotted B-86 Titan 13644 | -3/Proximity Caves | Destroyed B-86 Titan 13674 | -3/Proximity Caves | Found Hvy. Reflective Plating 13961 | -3/Proximity Caves | Discovered exit to Research (range 5) 13971 | -3/Proximity Caves | Entered Research 13971 | -3/Research | Evolved 2 slots: Utility x2 13974 | -3/Research | Loaded intel: 39 interactive machine locations 13975 | -3/Research | Loaded intel: 21 terminal locations 13976 | -3/Research | Loaded intel: 1 fabricator location 13977 | -3/Research | Loaded intel: 3 garrison access locations 14142 | -3/Research | Identified exit to Quarantine 14379 | -3/Research | Destroyed 7 combat bots 14652 | -3/Research | Spotted B-90 Cyclops 14697 | -3/Research | Destroyed B-90 Cyclops 14754 | -3/Research | Found Quantum Capacitor 14784 | -3/Research | Entered Quarantine 14865 | -3/Quarantine | Found Alien Artifact 14912 | -3/Quarantine | Found Alien Artifact 14912 | -3/Quarantine | Identified Phase Redirector 15373 | -3/Quarantine | Found Alien Artifact 15373 | -3/Quarantine | Identified Matter Drive 15510 | -3/Quarantine | Found Quantum Capacitor 15686 | -3/Quarantine | Found Alien Impact Weapon 15696 | -3/Quarantine | Discovered new exit (range 15) 15829 | -3/Quarantine | Incoming investigation squad redirected 15837 | -3/Quarantine | Found Alien Artifact 15837 | -3/Quarantine | Identified Stasis Generator 16036 | -3/Quarantine | Found Alien Artifact 16040 | -3/Quarantine | Found Alien Artifact 16048 | -3/Quarantine | Found Alien Artifact 16100 | -3/Quarantine | System corruption reached 10% 16454 | -3/Quarantine | Identified Core Stripper 16487 | -3/Quarantine | Spotted Fortress 16496 | -3/Quarantine | Destroyed Fortress 16503 | -3/Quarantine | Found Vortex Chain Reactor 16514 | -3/Quarantine | Found Prototype Device 16539 | -3/Quarantine | Found Prototype Device 16540 | -3/Quarantine | Identified Thermal Barrier 16542 | -3/Quarantine | Identified Exp. Force Field 16553 | -3/Quarantine | Found Prototype Device 16553 | -3/Quarantine | Identified EM Dispersion Field 16564 | -3/Quarantine | Found Prototype Protection 16571 | -3/Quarantine | Identified Centrium Heavy Armor Plating 16677 | -3/Quarantine | Discovered new exit (range 7) 16690 | -3/Quarantine | Entered Section 7 16718 | -3/Section 7 | Found Alien Artifact 16718 | -3/Section 7 | Identified Integrated Dissipator 16718 | -3/Section 7 | Installed Integrated Dissipator, increased core heat dissipation (+20) 16829 | -3/Section 7 | Build established: Hauler-Mutant 16981 | -3/Section 7 | First assault squad dispatched 16996 | -3/Section 7 | Identified Transdimensional Reconstructor (x2) 16996 | -3/Section 7 | Warped through subspace 17211 | -3/Section 7 | Spotted B-86 Titan 17464 | -3/Section 7 | Identified Hpw. Transdimensional Reconstructor 17464 | -3/Section 7 | Warped through subspace 17497 | -3/Section 7 | Garrison activated, responded to threat 17643 | -3/Section 7 | Discovered new exit (range 8) 17655 | -3/Section 7 | Identified Dimensional Node Initializer 17655 | -3/Section 7 | Initialized slip node 17660 | -3/Section 7 | Spotted S7 Guard 17690 | -3/Section 7 | Warped through subspace to slip node 17691 | -3/Section 7 | Self-destructed Last Messages --------------- 17674_ Destroyed Sml. Battery. 17676_ System corrupted: Enh. Nova Cannon failed to cycle. 17677_ K-01 Serf collects debris. 17678_ Destroyed Imp. Antigrav System. 17680_ Adv. Remote Datajack melted. 17680_ Lgt. Particle Reactor melted. 17680_ P-80 Master destroyed. 17681_ K-01 Serf collects debris. 17682_ System corrupted: Enh. Nova Cannon targeting data glitched. 17685_ :A,C4TWMOD10 A FHGGSTG8 17685_ K-01 Serf collects debris. 17686_ Adv. Target Analyzer melted. 17686_ P-80 Master destroyed. 17690_ ALERT: Significant disruption in Zone 8X, assault force dispatched. 17690_ C-30 ARC bursts open, deploying its payload. 17690_ G-73 Enforcer unfolds itself. 17690_ B-74 Champion unfolds itself. 17690_ L-61 Swordsman unfolds itself. 17690_ I-47 Archangel unfolds itself. 17690_ Warped through subspace, drawn to slip node. Map ----- +----------------------------------------------------+ | ?????????????????????????????????????????????????? | | ?????????????????????????????????????????????????? | | ?????????????????????????????????????????????????? | | ?????????????????????????????????????????????????? | | ?????????????????????????????????????????????????? | | ?????????????????????????????????????????????????? | | ?????????????????????????????????????????????????? | | ?????????????????????? ?????????????????????????? | | ?????????????????????" ?????????????????????????? | | ?????????????????????" ?????????????????????????? | | ?? ?????????????????? #????????????????????????? | | "" "????????????????"" #????????????????????????? | | "" "????????? ??????"" #????????????????????????? | | "" "???""???# ?????" #????????????????????????? | | "" "???""???# ???? /????????????????????????? | | "" "?? ""???# "??"""" ????????????????????????? | | ?????? ???# "?""""" ????????????????????????? | | #+######+#### """"""" #????????????????????????? | | !%! ????????????????????????? | | ! """"""" #????????????????????????? | | """"""" #????????????????????????? | | """"""" #????????????????????????? | | #######+###% #????????????????????????? | | # # =%=#????????????????????????? | | + ""G"" # [=!l####?????????????????????? | | ### " " !#[ **[g@ #?????????????????????? | | ??# *%#*= "" "" b^ #?????????????????????? | | ??# """ """=#%[= ""T"" i ^#?????????????????????? | | ??# " " " "[/%=% """ #?????????????????????? | | ??# """ """!##########;#####?????????????????????? | | ??# =[!#????????##??????????????????????????? | | ??###########????????????????????????????????????? | | ?????????????????????????????????????????????????? | | | | | | | | | | | | | | | | | | | | | | | | | | | | | | | | | | | +----------------------------------------------------+ Best States ------------- Heat Dissipation 97 Energy Generation 65 Energy Capacity 1500 Matter Stores 300 Matter Capacity 300 Sight Range 16 Terrain Scan Density 10 Armor Coverage 1650 Resistance: KI 30 Resistance: TH 50 Resistance: EM 75 Evasion (%) 40 Targeting Accuracy 12 Target Analysis 8 Core Analysis 10 Armor Integrity Analysis 90 Recoil Reduction 6 Item Schematics ----------------- Hcp. Storage Unit | -10/Materials | Hacked Arm. Treads | -8/Materials | Hacked Combat Drone Bay | -7/Data Miner | Free Lgt. Regenerative Plating | -7/Data Miner | Free Exp. Flexi-carbon Leg | -7/Data Miner | Free Cmb. Gravmag System | -7/Data Miner | Free Exp. Cesium-ion Thruster | -7/Data Miner | Free Exp. Terrain Scanner | -7/Data Miner | Free Exp. Terrain Scan Processor | -7/Data Miner | Free Exp. Targeting Computer | -7/Data Miner | Free Exp. ECM Suite | -7/Data Miner | Free Kinetic Spear | -7/Data Miner | Free Assault Drone Bay | -4/Zhirov | Free Exp. Heat Sink | -4/Zhirov | Free Exp. Optical Array | -4/Zhirov | Free Imp. Arc Thrower | -4/Zhirov | Free Robot Schematics ------------------ S-27 Virus | -7/Data Miner | Free G-50 Soldier | -7/Data Miner | Free G-67 Veteran | -7/Data Miner | Free X-72 Disruptor | -7/Data Miner | Free H-66 Slayer | -7/Data Miner | Free I-36 Angel | -7/Data Miner | Free Fabricated ------------ Arm. Treads | x2 | -7/Factory Arm. Treads | x2 | -7/Factory Alien Tech Used ----------------- Integrated Reactor Phase Redirector Matter Drive Stasis Generator Core Stripper Integrated Dissipator Transdimensional Reconstructor High-powered Transdimensional Reconstructor Dimensional Node Initializer Achievements -------------- None Challenges ------------ None Game ------ Seed RagnarokMyomerNegator Manual? 0 Play Time 01:45:50 Cumulative 653.0 hours Start 2020.10.15 @ 11:49:23 End 2020.10.15 @ 13:37:15 Sessions 1 Manual Loads 0 Difficulty Rogue Special Mode None Game No. 990 Rogue 990 Adventurer 0 Explorer 0 Win Type - Total 62 Types 38/1/8/11/4/0/0/0/0 Lore% 94 Gallery% 94 Achievement% 83 Wizard Run 0 Options --------- ASCII 1 Keyboard 0 Movement Numpad Keybinds 0 Fullscreen 0 Font 14/SmallcapsGlow Map View 76x50 Tactical HUD 1 Map Filters NONE Filters NONE Steam 1 RUN: d156054d-c789-4ab0-8077-a1eb7be23fe2